Cogmind - Beta 16.1 @@@ ROGUE MODE // 2026.04.04 @ 19:51:12 // Winter2022/Polymind Player: the Result: Destroyed by DAS Turret with DAS Cannon Performance ------------- Evolutions (1) 500 Regions Visited (5) 1000 Robots Destroyed (38) 190 Value Destroyed (842) 842 Prototype IDs (0) 0 Alien Tech Used (0) 0 Bonus (2726) 2726 TOTAL SCORE: 4808 Bonus ------- Polymind Skill 2860 High Alert Combat Kills 16 Follower Combat Kills 58 Friendly Fire -208 Cogmind --------- Core Integrity 0/400 Matter 0/0 Energy 91/100 System Corruption 0% Temperature Cool (0) Movement Core (50) Location -9/Exiles Parts ------- > --- POWER (1) -------- (None) > --- PROPULSION (2) --- (None) > --- UTILITY (3) ------ (None) > --- WEAPON (1) ------- (None) > --- INVENTORY (0) ---- (None) Peak State ------------ > --- POWER ------------ Light Deuterium Engine > --- PROPULSION ------- Combat Airjet Combat Airjet > --- UTILITY ---------- Launcher Guidance Computer Improved Light Armor Plating Shock Absorption System > --- WEAPON ----------- Mini Grenade Launcher > --- INVENTORY -------- (None) [Rating: 26] Favorites ----------- Power Light Deuterium Engine Engine Light Deuterium Engine Propulsion Combat Airjet Wheel Compact Wheel Hover Unit Combat Airjet Utility Launcher Guidance Computer Device Shock Absorption System Storage Small Storage Unit Processor Launcher Guidance Computer Protection Improved Light Armor Plating Weapon Mini Grenade Launcher Launcher Mini Grenade Launcher Build | -11 -10 -10 -9 -9 -9 ------- Run | Yrd Mat Min Mat Min Exi Slots Evolved . | . . . . . . Power . | . . . . . . Propulsion . | . . . . . . Utility . | . . . . . . Weapon . | . . . . . . Parts Attached . | . . . . . . Power . | . . . . . . Engine . | . . . . . . Core . | . . . . . . Reactor . | . . . . . . Propulsion . | . . . . . . Treads . | . . . . . . Leg . | . . . . . . Wheel . | . . . . . . Hover . | . . . . . . Flight . | . . . . . . Utility . | . . . . . . Device . | . . . . . . Storage . | . . . . . . Processor . | . . . . . . Hackware . | . . . . . . Protection . | . . . . . . Artifact . | . . . . . . Weapon . | . . . . . . Energy Gun . | . . . . . . Energy Cannon . | . . . . . . Ballistic Gun . | . . . . . . Ballistic Cannon . | . . . . . . Launcher . | . . . . . . Special Weapon . | . . . . . . Impact Weapon . | . . . . . . Slashing Weapon . | . . . . . . Piercing Weapon . | . . . . . . Special Melee Weapon . | . . . . . . Unidentified Prototypes . | . . . . . . Parts Lost 3 | . . . 3 . . Power 1 | . . . 1 . . Propulsion . | . . . . . . Utility 2 | . . . 2 . . Weapon . | . . . . . . Highest Loss Streak 2 | . . . 2 . . To Critical Strikes . | . . . . . . Average Backups . | . . . . . . Power . | . . . . . . Propulsion . | . . . . . . Utility . | . . . . . . Weapon . | . . . . . . Tool/Special . | . . . . . . Unused Backups 6 | . 1 5 . . . Power . | . . . . . . Propulsion . | . . . . . . Utility 4 | . 1 3 . . . Weapon 2 | . . 2 . . . Tool/Special . | . . . . . . Average Slot Usage (%) 79 | . 100 100 88 57 46 Engine 7 | . 20 15 9 . . Wheel 5 | . 40 11 . . . Hover 24 | . . 19 28 28 22 Device 8 | . 20 15 10 . . Storage 2 | . 20 5 . . . Processor 12 | . . 9 14 14 11 Protection 5 | . . 9 10 . . Launcher 12 | . . 9 14 14 11 Peak Build Rating 26 | 5 5 26 26 16 16 Average Rating 18 | 3 5 20 23 16 12 On Entrance 11 | . 5 5 26 16 16 Avg Prop Armor Cover (%) . | . . . . . . Naked Turns 27 | . . . . . 27 Heaviest Build 12 | 9 9 12 12 1 1 Greatest Support 32 | 32 32 32 24 24 24 Greatest Overweight (x) . | . . . . . . Average Overweight (x) . | . . . . . . Largest Inventory Capacity 4 | 4 4 4 1 1 1 Average Capacity 1 | 2 4 1 1 1 . Most Carried 4 | . 4 3 . . . Average Carried . | . . . . . . Final Capacity 4 | 4 4 1 1 1 . Final Carried 4 | . 4 . . . . Class Distribution -------------------- 86% | Demolisher 11% | Recycler Dominant Class ---------------- Recycler | -10/Materials Demolisher | -10/Mines Demolisher | -9/Materials Demolisher | -9/Mines Demolisher | -9/Exiles Resources | -11 -10 -10 -9 -9 -9 ----------- Run | Yrd Mat Min Mat Min Exi Matter Collected 715 | . . 293 149 273 . Remotely . | . . . . . . Salvage Created 622 | . . 133 179 310 . Parts 59 | . . 8 34 17 . Haulers Intercepted . | . . . . . . Recyclers Shooed . | . . . . . . Parts Field Recycled . | . . . . . . Retrieved Matter . | . . . . . . Parts Self-Destructed . | . . . . . . Prevented . | . . . . . . Parts Restored . | . . . . . . Kills | -11 -10 -10 -9 -9 -9 ------- Run | Yrd Mat Min Mat Min Exi Combat Hostiles Destroyed 34 | . . 16 13 5 . AOE 34 | . . 16 13 5 . Classes Destroyed 11 | . . 6 5 . . Worker 2 | . . . 2 . . Builder 4 | . . . 3 1 . Tunneler 1 | . . . 1 . . Recycler 4 | . . 1 1 2 . Watcher 2 | . . . 2 . . Swarmer 9 | . . 3 6 . . Grunt 9 | . . . 6 3 . Brawler 3 | . . . 1 2 . Sentry 2 | . . 2 . . . Demolisher 1 | . . 1 . . . Assembled 10 | . . 10 . . . Thug 1 | . . 1 . . . Best Kill Streak 8 | . . 5 8 3 . Combat Bots Only 6 | . . 5 6 3 . Max Kills in Single Turn 4 | . . 3 4 2 . Gunslinging . | . . . . . . Exploded 3 | . . 3 3 2 . Melee . | . . . . . . Uniques/NPCs Destroyed . | . . . . . . Combat | -11 -10 -10 -9 -9 -9 -------- Run | Yrd Mat Min Mat Min Exi Hostile Shots Fired 73 | . . 29 27 4 13 Missed 26 | . . 7 13 1 5 Hits 47 | . . 22 14 3 8 Projectile 47 | . . 22 14 3 8 AOE 7 | . . 7 . . . Critical Strikes 1 | . . 1 . . . Damage Taken 933 | . . 307 237 96 293 Core 516 | . . 87 78 58 293 Absorbed by Shields . | . . . . . . Ignored by Resistances 600 | . . 357 178 65 . Core Remaining (%) 82 | 100 . 65 . . . Volleys Fired 71 | . . 34 23 14 . Largest 1 | . . 1 1 1 . Hottest 30 | . . 30 30 30 . Shots Fired 71 | . . 34 23 14 . Gun . | . . . . . . Cannon . | . . . . . . Launcher 71 | . . 34 23 14 . Special . | . . . . . . Kinetic . | . . . . . . Thermal . | . . . . . . Explosive 71 | . . 34 23 14 . Electromagnetic . | . . . . . . Robot Hit Streak 14 | . . 14 10 12 . Robot Miss Streak 1 | . . 1 1 . . Penetration Max . | . . . . . . Secondary Targets . | . . . . . . Shots Hit Robots 36 | . . 18 8 10 . Core Hits 71 | . . 34 26 11 . Critical Kills . | . . . . . . Critical Parts Destroyed . | . . . . . . Critical Strikes . | . . . . . . Melee Attacks . | . . . . . . Impact . | . . . . . . Slashing . | . . . . . . Piercing . | . . . . . . Sneak Attacks . | . . . . . . Combat Hostiles . | . . . . . . Follow-up Attacks . | . . . . . . Damage Inflicted 3789 | . . 1319 1747 723 . Guns . | . . . . . . Cannons . | . . . . . . Explosions 3789 | . . 1319 1747 723 . Melee . | . . . . . . Ramming . | . . . . . . Kinetic . | . . . . . . Thermal . | . . . . . . Explosive 3789 | . . 1319 1747 723 . Electromagnetic . | . . . . . . Impact . | . . . . . . Slashing . | . . . . . . Piercing . | . . . . . . Highest Corruption . | . . . . . . Average Corruption . | . . . . . . Corruption Purged . | . . . . . . Corruption Blocked . | . . . . . . Overload Shots . | . . . . . . Overflow Damage 215 | . . 88 110 17 . Projectiles . | . . . . . . Explosions 215 | . . 88 110 17 . Melee . | . . . . . . Knockbacks . | . . . . . . Impact . | . . . . . . Kinetic . | . . . . . . Secondary . | . . . . . . Self-Inflicted Damage 195 | . . 48 85 62 . Shots 15 | . . 6 5 4 . Rammed . | . . . . . . Targets Rammed . | . . . . . . Kicked . | . . . . . . Crushed . | . . . . . . Highest Temperature 58 | . . 58 4 . . Average Temperature 18 | . . 22 1 . . Received Heat Transfer 180 | . . 96 66 18 . Siege Activations . | . . . . . . Martial Activations . | . . . . . . Shielding Activations . | . . . . . . Robots Disrupted . | . . . . . . Combat Hostiles . | . . . . . . Robots Corrupted . | . . . . . . Combat Hostiles . | . . . . . . Parts Fried . | . . . . . . Impact Corruptions . | . . . . . . Robots Melted . | . . . . . . Combat Hostiles . | . . . . . . Parts Melted . | . . . . . . Heat Transferred . | . . . . . . Parts Sabotaged . | . . . . . . Parts Stolen . | . . . . . . Parts Stripped . | . . . . . . Power Chain Reactions . | . . . . . . Alert | -11 -10 -10 -9 -9 -9 ------- Run | Yrd Mat Min Mat Min Exi Maximum Alert Level 2 | . . . 2 1 . Low Security (%) 42 | 100 100 100 24 . . Level 1 47 | . . . 41 100 . Level 2 9 | . . . 33 . . Level 3 . | . . . . . . Level 4 . | . . . . . . Level 5 . | . . . . . . High Security . | . . . . . . Max Security . | . . . . . . Peak Influence 585 | . . 192 585 341 . Initial 227 | . . . 58 227 . Average 225 | . . 75 349 285 . Influence Increases 1353 | . . 307 782 264 . Destroy 0b10 Robot/C 520 | . . 120 300 100 . Destroy 0b10 Robot/NC 85 | . . 5 60 20 . Destroy Leader 100 | . . 20 60 20 . Allied During Kill 12 | . . . 12 . . Disable Machine 165 | . . 15 120 30 . Destroy Structure 411 | . . 147 170 94 . Partial Spotted 15 | . . . 15 . . Lose Combat Pursuer 45 | . . . 45 . . Influence Decreases 1353 | . . 157 348 603 245 Entered New Map 694 | . . . 92 357 245 Time Decay 609 | . . 157 206 246 . Lost Part 30 | . . . 30 . . Lost Ally 20 | . . . 20 . . Squads Dispatched 3 | . . . 3 . . Investigation 1 | . . . 1 . . Extermination . | . . . . . . Reinforcement 2 | . . . 2 . . Assault . | . . . . . . Garrison . | . . . . . . Intercept . | . . . . . . Searches Triggered . | . . . . . . Construction Impeded 1 | . . . 1 . . Haulers Reinforced . | . . . . . . Active Scanning Responses . | . . . . . . Cargo Convoy Interrupts . | . . . . . . Stealth | -11 -10 -10 -9 -9 -9 --------- Run | Yrd Mat Min Mat Min Exi Distress Signals 1 | . . . 1 . . Communications Jammed . | . . . . . . Distress Signals . | . . . . . . Times Spotted 50 | . . 17 21 3 9 Peak Tracking Total 9 | . . 4 4 1 9 Tactical Retreats 4 | . . 1 3 . . Traps | -11 -10 -10 -9 -9 -9 ------- Run | Yrd Mat Min Mat Min Exi Traps Triggered . | . . . . . . Indirectly . | . . . . . . Trap Hack Attempts . | . . . . . . Triggered . | . . . . . . Disarmed . | . . . . . . Reprogrammed . | . . . . . . Reused . | . . . . . . Traps Extracted . | . . . . . . Installed . | . . . . . . Triggered . | . . . . . . Machines | -11 -10 -10 -9 -9 -9 ---------- Run | Yrd Mat Min Mat Min Exi Machines Disabled 14 | . . 3 8 2 1 Max in Single Turn 2 | . . 2 2 1 . Machines Repaired . | . . . . . . Machines Dismantled . | . . . . . . Machines Sabotaged . | . . . . . . Overloaded Fab Kills . | . . . . . . Hacking | -11 -10 -10 -9 -9 -9 --------- Run | Yrd Mat Min Mat Min Exi Machines Accessed . | . . . . . . Terminals . | . . . . . . Fabricators . | . . . . . . Repair Stations . | . . . . . . Recycling Units . | . . . . . . Scanalyzers . | . . . . . . Garrison Access . | . . . . . . Total Hacks . | . . . . . . Successful . | . . . . . . Failed . | . . . . . . Catastrophic . | . . . . . . Database Lockouts . | . . . . . . Manual . | . . . . . . Terminals . | . . . . . . Fabricators . | . . . . . . Repair Stations . | . . . . . . Recycling Units . | . . . . . . Scanalyzers . | . . . . . . Garrison Access . | . . . . . . Terminal Hacks . | . . . . . . Fabricator Hacks . | . . . . . . Repair Station Hacks . | . . . . . . Recycling Unit Hacks . | . . . . . . Scanalyzer . | . . . . . . Garrison Access Hacks . | . . . . . . Unauthorized Hacks . | . . . . . . Terminals . | . . . . . . Fabricators . | . . . . . . Repair Stations . | . . . . . . Recycling Units . | . . . . . . Scanalyzers . | . . . . . . Garrison Access . | . . . . . . Data Cores Recovered . | . . . . . . Used . | . . . . . . Hacking Detections . | . . . . . . Full Trace Events . | . . . . . . Feedback Events . | . . . . . . Feedback Blocked . | . . . . . . Robot Schematics Acquired . | . . . . . . Robots Built . | . . . . . . Authchips . | . . . . . . Time . | . . . . . . Total Robot Build Rating . | . . . . . . Part Schematics Acquired . | . . . . . . Parts Built . | . . . . . . Authchips . | . . . . . . Time . | . . . . . . Total Part Build Rating . | . . . . . . Part Studies Acquired . | . . . . . . Parts Repaired . | . . . . . . Time . | . . . . . . Parts Recycled . | . . . . . . Recycled Matter . | . . . . . . Retrieved Matter . | . . . . . . Retrieved Components . | . . . . . . Parts Scanalyzed . | . . . . . . Part Schematics Acquired . | . . . . . . Parts Damaged . | . . . . . . Bothacking | -11 -10 -10 -9 -9 -9 ------------ Run | Yrd Mat Min Mat Min Exi Used RIF Installer . | . . . . . . Robots Hacked 1 | . . 1 . . . Non-combat . | . . . . . . Combat 1 | . . 1 . . . Robot Hacks Applied 1 | . . 1 . . . find_shortcuts 1 | . . 1 . . . Relay Couplers Released . | . . . . . . Fabnet Peak Effective % . | . . . . . . Robots Rewired . | . . . . . . Allies Hacked . | . . . . . . Hacks Repelled . | . . . . . . Allies | -11 -10 -10 -9 -9 -9 -------- Run | Yrd Mat Min Mat Min Exi Total Allies 3 | . . 2 . 1 . Largest Group 2 | . . 2 1 1 1 Highest-Rated Group 42 | . . 42 31 31 31 Highest-Rated Ally 31 | . . 31 31 31 31 Total Orders . | . . . . . . Ally Attacks 24 | . . . 20 . 4 Total Damage 314 | . . . 292 . 22 Kills 6 | . . . 5 . 1 Allies Corrupted . | . . . . . . Allies Melted . | . . . . . . Intel | -11 -10 -10 -9 -9 -9 ------- Run | Yrd Mat Min Mat Min Exi Active Infowar (turns) . | . . . . . . Robot Analysis Total 2 | 1 . 1 . . . Derelict Logs Recovered 3 | . . 1 . 2 . Drone Launches . | . . . . . . Drone Recoveries . | . . . . . . Exploration | -11 -10 -10 -9 -9 -9 ------------- Run | Yrd Mat Min Mat Min Exi Turns Passed 1608 | 15 57 463 438 527 108 Spaces Moved 1760 | 21 52 447 473 608 159 Core 65 | 11 . . . . 54 Treads . | . . . . . . Legs . | . . . . . . Wheels 180 | 10 52 118 . . . Hover 1515 | . . 329 473 608 105 Flight . | . . . . . . Fastest Speed 50 | 50 100 77 77 77 50 Average Speed 78 | 73 100 83 77 77 67 Slowest Speed 100 | 100 100 100 77 77 77 Overloaded Moves . | . . . . . . Propulsion Burnouts . | . . . . . . Robots Hopped . | . . . . . . Potential Cave-ins . | . . . . . . Cave-ins Triggered . | . . . . . . Exploration Rate (%) 49 | 3 10 91 53 95 45 Regions Visited 5 Branch Regions 3 Pre-discovered Areas 2 | . . 1 . 1 . Known Exits Taken . | . . . . . . Unknown Exits Taken 5 | 1 1 1 1 1 . Scrap Searched 3 | . . 1 . 2 . Spaces Dug 49 | . . 18 21 10 . Terrain Destroyed 521 | . . 225 184 112 . Melee . | . . . . . . Projectile . | . . . . . . AOE 521 | . . 225 184 112 . Terrain Rammed . | . . . . . . Walls Destroyed . | . . . . . . Machines Disabled . | . . . . . . Actions | -11 -10 -10 -9 -9 -9 --------- Run | Yrd Mat Min Mat Min Exi Total 1917 | 20 57 506 523 652 159 Wait 80 | . . 21 28 31 . Move 1755 | 20 51 446 472 607 159 Hop . | . . . . . . Pick Up 6 | . 5 1 . . . Fast Attach . | . . . . . . Attach . | . . . . . . Detach . | . . . . . . Swap . | . . . . . . Drop 5 | . 1 4 . . . Fire 71 | . . 34 23 14 . Melee . | . . . . . . Ram . | . . . . . . Kick . | . . . . . . Crush . | . . . . . . Escape Stasis . | . . . . . . Rewire . | . . . . . . Trap . | . . . . . . Miscellaneous . | . . . . . . Route ------- -11/Scrapyard -10/Materials -10/Mines (discovered 2 exits: [*Mat x2]) -9/Materials (discovered 3 exits: [*Mat x2] / [*Min]) -9/Mines (discovered 4 exits: [*Mat x2] / [*Exi] / [*Zio]) -9/Exiles History --------- Turn | Location | Event 3 | -11/Scrapyard | Discovered new exit (range 15) 16 | -11/Scrapyard | Entered Materials 50 | -10/Materials | Discovered new exit (range 9) 73 | -10/Materials | Entered Mines 85 | -10/Mines | Discovered new exit (range 7) 89 | -10/Mines | Met a Derelict bent on vengeance 172 | -10/Mines | Assembled infested the area 177 | -10/Mines | Assisted by a Guerilla fighting off Assembled 294 | -10/Mines | Joined a pair of Derelicts in attacking an 0b10 outpost 518 | -10/Mines | Discovered new exit (range 9) 536 | -10/Mines | Entered Materials 536 | -9/Materials | Accompanied by 1 ally 541 | -9/Materials | Led the pair of lost Derelicts to an unsafe place 620 | -9/Materials | Discovered new exit (range 16) 630 | -9/Materials | Discovered new exit (range 16) 731 | -9/Materials | Discovered new exit (range 9) 974 | -9/Materials | Entered Mines 1109 | -9/Mines | Discovered new exit (range 10) 1176 | -9/Mines | Learned location of Storage (-9) 1212 | -9/Mines | Discovered new exit (range 13) 1274 | -9/Mines | A weapon hastily lodged in a ceiling crevice suddenly fell to the ground 1274 | -9/Mines | Learned 4 Materials zone layouts 1344 | -9/Mines | Received a Mining Laser from a helpful Derelict 1442 | -9/Mines | A Derelict revealed a hidden shortcut to a safe place 1476 | -9/Mines | Deemed a non-threat by the Exiles lab entrance 1477 | -9/Mines | Discovered new exit (range 5) 1501 | -9/Mines | Entered Exiles 1501 | -9/Exiles | Accompanied by 1 ally 1520 | -9/Exiles | Met 8R-AWN 1532 | -9/Exiles | Met EX-HEX 1584 | -9/Exiles | Attacked by the Exiles 1602 | -9/Exiles | Core integrity fell below 50% 1608 | -9/Exiles | Core integrity fell below 20% 1609 | -9/Exiles | Destroyed by DAS Turret with DAS Cannon Last Messages --------------- 01582_ Released control of D-53 Grenadier. 01583_ HV Slug penetrates D-53 Grenadier. 01583_ HV Slug penetrates Machine. 01583_ Machine disabled. 01583_ HV Slug penetrates D-53 Grenadier. 01583_ D-53 Grenadier suffers critical hit (Destroy). 01583_ D-53 Grenadier destroyed. 01583_ HV Slug penetrates Wall. 01584_ EXILES: Hostile robot within lab perimeter. Defensive protocols time, folks! 01586_ as-35091 destroyed. 01589_ Machine disabled. 01591_ HV Slug penetrates as-11960. 01591_ as-11960 destroyed. 01591_ HV Slug penetrates Machine. 01591_ Machine disabled. 01591_ HV Slug penetrates 8R-923(g). 01591_ 8R-923(g) destroyed. 01598_ EX-BIN: "I just want to science!" 01605_ Knocked back. Map ----- +----------------------------------------------------+ | ????????????????????????????????????" ??????? | | ???????????????????????????????????#" ???????? | | ?????????????????????" ???????????##" #???????? | | ?????????????????????# ?????????##"" #???????? | | ???????????????????### ????######"" #???????? | | ????????????????####X# #"###""""""" ##??????? | | ??????????????? """""" " "" ##???### | | ?????????????? "" """ " #####"" | | ?????????????? " " " | | ????????????? | | ????????????? | | ???????????? % | | ????????????? | | ??????????????" | | ?????????????#""" % """""" | | ?????????????#" ######""" | | ?????????????"" ""##????#####""" | | ?????????????""" """##?????????##""" | | ?????????????"" """##???????????#"""" | | ????????????""" ""#???????????##" | | ????????????"" % %########??####"""" | | ????????????""" ##aaa####""" | | ????????????"" """" | | ????????????#"" t | | ?????????????"""" % | | ?????????????# @ | | ?????????????#" " "" | | ?????????????#"""" ""## ##""" " " | | ??????????????"" ""#### ######""" " | | ?????????????#" """"##??# #????###""" | | ?????????????#""" """#???# #??????#### | | ??????????????# ""##???! ?????????? | | ??????????????#"" """##???#" ????????? | | ??????????????##""" c ##????#" ????????? | | ???????????????##"""" ##?????#!!""!"???????? | | ?????????????????## #??????########??????? | | ???????????????????#### ##????????????????????? | | ??????????????????????## #?????????????????????? | | ???????????????????????? c??????????????????????? | | ???????????????????????? ??????????????????????? | | ???????????????????????? ??????????????????????? | | ?????????????????????????????????????????????????? | | ?????????????????????????????????????????????????? | | ?????????????????????????????????????????????????? | | ?????????????????????????????????????????????????? | | ?????????????????????????????????????????????????? | | ?????????????????????????????????????????????????? | | ?????????????????????????????????????????????????? | | ?????????????????????????????????????????????????? | | ?????????????????????????????????????????????????? | +----------------------------------------------------+ Best States ------------- Heat Dissipation 28 Energy Generation 24 Energy Capacity 100 Matter Stores 150 Matter Capacity 150 Sight Range 16 Terrain Scan Density 10 Armor Coverage 150 Resistance: EX 75 Resistance: I 25 Evasion (%) 50 Launcher Accuracy 20 Item Schematics ----------------- None Robot Schematics ------------------ None Fabricated ------------ Nothing Repaired ---------- Nothing Studied --------- None Alien Tech Used ----------------- None Achievements -------------- None Challenges ------------ None Polymind | -11 -10 -10 -9 -9 -9 ---------- Run | Yrd Mat Min Mat Min Exi Hosts 2 | 1 . 1 . . . Combat Hostiles 1 | . . 1 . . . Allies . | . . . . . . Unique Host Classes 2 | 1 . 1 . . . Average Host Suspicion 80 | 1 11 76 91 96 . Unsuspicious Activity 52 | 2 . 50 . . . Returns to Shadow . | . . . . . . Fuzzy Dispatches . | . . . . . . Protomatter Created 183 | . . 53 101 21 8 Used 45 | 5 . 40 . . . Decayed 18 | . . 9 9 . . Highest Spend 40 | 5 . 40 . . . Top 5 Hosts by Kills: D-53 Grenadier (-10/Mines: 34) Game ------ Seed ArchitectBraceNullifier Manual? 0 Play Time 00:13:38 Cumulative 692.0 hours Start 2026.04.04 @ 19:38:29 End 2026.04.04 @ 19:51:12 Sessions 1 Manual Loads 0 Difficulty Rogue Special Mode Winter2022/Polymind Game No. 388 Rogue 388 Adventurer 0 Explorer 0 Win Type - Total 30 Types 15/1/6/2/1/1/1/2/1/0 Lore% 93 Gallery% 87 Achievement% 78 Wizard Run 0 Options --------- Layout 0 ASCII 0 Keyboard 0 Movement Mouse Keybinds 0 Fullscreen 2 Font 24/Smallcaps Map View 76x50 Zoom Use 0% Tactical HUD 1 Map Filters NONE Filters NONE Steam 1 RUN: 222c5e40-0ee5-4961-8334-b63be1979936